fUST/lending_fUST_20240412
["ID","MTS","AMOUNT","RATE_DAILY","PERIOD"]
[322245289,1712911857822,-3609.0,0.0003593,35]
[322245291,1712911857832,-329.0,0.0003594,35]
[322245293,1712911857841,-19659.66755807,0.00035948,60]
[322245306,1712911857958,-23276.810043,0.00035948,60]
[322246485,1712912839119,-225.63849083,0.00025495,2]
[322246486,1712912839141,-347.94192199,0.00025495,2]
[322246495,1712913016801,631.89,0.00024656,5]
[322246496,1712913016822,134.17388978,0.00024656,5]
[322246532,1712913032515,-250.0,0.00025488,2]
[322246533,1712913032525,-874.98344823,0.00025488,2]
[322246534,1712913032534,-522.7857071,0.00025489,4]
[322246535,1712913032544,-300.0,0.00025497,2]
[322246536,1712913032554,-300.0,0.00025497,2]
[322246537,1712913032563,-24890.0,0.00025498,2]
[322246538,1712913032573,-579.5794927,0.00026496,2]
[322246539,1712913032584,-46659.87120961,0.00026506,2]
[322246540,1712913032593,-154.90705577,0.00027,2]
[322246541,1712913032602,-225.37872353,0.00027395,2]
[322246542,1712913032611,-154.93802479,0.00027395,2]
[322246543,1712913032621,-268.873143,0.00027395,7]
[322246544,1712913032630,-253.00501589,0.00027395,2]
[322246545,1712913032639,-476.79494397,0.00027396,2]
[322246546,1712913032648,-223.82694587,0.00027396,2]
[322246547,1712913032659,-239.19603286,0.00027396,2]
[322246548,1712913032668,-181.40027232,0.00027396,2]
[322246549,1712913032677,-500.0,0.00027397,2]
[322246550,1712913032686,-500.0,0.00027397,2]
[322246551,1712913032695,-506.30951657,0.00027397,2]
[322246552,1712913032704,-500.0,0.00027397,2]
[322246553,1712913032713,-511.51799614,0.00027397,2]
[322246554,1712913032722,-500.0,0.00027397,2]
[322246555,1712913032731,-500.0,0.00027397,2]
[322246556,1712913032739,-500.0,0.00027397,2]
[322246557,1712913032748,-500.0,0.00027397,2]
[322246558,1712913032757,-370.34944153,0.00027397,2]
[322246559,1712913032766,-500.0,0.00027397,2]
[322246560,1712913032775,-505.052654,0.00027397,2]
[322246561,1712913032784,-500.0,0.00027397,2]
[322246562,1712913032792,-500.0,0.00027397,2]
[322246563,1712913032802,-500.0,0.00027397,2]
[322246564,1712913032811,-500.0,0.00027397,2]
[322246565,1712913032819,-95.02956315,0.00027397,2]
[322246607,1712913038679,-404.97043685,0.00027397,2]
[322246609,1712913038689,-500.0,0.00027397,2]
[322246611,1712913038698,-500.0,0.00027397,2]
[322246613,1712913038707,-591.51596619,0.00027397,2]
[322246615,1712913038717,-500.0,0.00027397,2]
[322246617,1712913038726,-500.0,0.00027397,2]
[322246618,1712913038736,-500.0,0.00027397,2]
[322246619,1712913038745,-500.0,0.00027397,2]
[322246620,1712913038754,-500.0,0.00027397,2]
[322246621,1712913038763,-296.90144895,0.00027397,2]
[322246626,1712913039072,-203.09855105,0.00027397,2]
[322246629,1712913039081,-500.0,0.00027397,2]
[322246632,1712913039091,-500.0,0.00027397,2]
[322246634,1712913039100,-552.55,0.00027397,2]
[322246636,1712913039109,-500.0,0.00027397,2]
[322246638,1712913039118,-500.0,0.00027397,2]
[322246640,1712913039129,-615.32305045,0.00027397,2]
[322246642,1712913039138,-500.0,0.00027397,2]
[322246644,1712913039148,-500.0,0.00027397,2]
[322246646,1712913039158,-500.0,0.00027397,2]
[322246648,1712913039168,-500.0,0.00027397,2]
[322246650,1712913039178,-500.0,0.00027397,2]
[322246652,1712913039188,-500.0,0.00027397,2]
[322246654,1712913039198,-500.0,0.00027397,2]
[322246656,1712913039208,-300.0,0.00027397,2]
[322246658,1712913039218,-500.0,0.00027397,2]
[322246660,1712913039228,-500.0,0.00027397,2]
[322246662,1712913039238,-500.0,0.00027397,2]
[322246664,1712913039248,-500.0,0.00027397,2]
[322246676,1712913039257,-500.0,0.00027397,2]
[322246679,1712913039378,-500.0,0.00027397,2]
[322246681,1712913039390,-500.0,0.00027397,2]
[322246683,1712913039400,-500.0,0.00027397,2]
[322246685,1712913039410,-500.0,0.00027397,2]
[322246687,1712913039422,-432.00653899,0.00027397,2]
[322246689,1712913039433,-500.0,0.00027397,2]
[322246691,1712913039446,-500.0,0.00027397,2]
[322246693,1712913039455,-500.0,0.00027397,2]
[322246695,1712913039467,-500.0,0.00027397,2]
[322246696,1712913039477,-500.0,0.00027397,2]
[322246698,1712913039487,-500.0,0.00027397,2]
[322246701,1712913039498,-500.0,0.00027397,2]
[322246702,1712913039507,-158.09608025,0.00027397,2]
[322246704,1712913039517,-500.0,0.00027397,2]
[322246706,1712913039527,-500.0,0.00027397,2]
[322246708,1712913039537,-500.0,0.00027397,2]
[322246711,1712913039548,-500.0,0.00027397,2]
[322246713,1712913039560,-500.0,0.00027397,2]
[322246715,1712913039569,-500.0,0.00027397,2]
[322246716,1712913039580,-500.0,0.00027397,2]
[322246718,1712913039595,-500.0,0.00027397,2]
[322246721,1712913039605,-500.0,0.00027397,2]
[322246722,1712913039615,-500.0,0.00027397,2]
[322246724,1712913039626,-509.51865081,0.00027397,2]
[322246726,1712913039637,-500.0,0.00027397,2]
[322246729,1712913039648,-507.03594079,0.00027397,2]
[322246731,1712913039659,-500.0,0.00027397,2]
[322246733,1712913039670,-500.0,0.00027397,2]
[322246734,1712913039682,-1045.83,0.00027397,2]
[322246736,1712913039693,-500.0,0.00027397,2]
[322246739,1712913039706,-500.0,0.00027397,2]
[322246740,1712913039717,-500.0,0.00027397,2]
[322246743,1712913039727,-500.0,0.00027397,2]
[322246744,1712913039738,-500.0,0.00027397,2]
[322246747,1712913039749,-2709.69,0.00027397,2]
[322246748,1712913039759,-500.0,0.00027397,2]
[322246750,1712913039769,-500.0,0.00027397,2]
[322246752,1712913039779,-500.0,0.00027397,2]
[322246754,1712913039790,-500.0,0.00027397,2]
[322246756,1712913039811,-500.0,0.00027397,2]
[322246758,1712913039821,-500.0,0.00027397,2]
[322246760,1712913039830,-500.0,0.00027397,2]
[322246762,1712913039840,-500.0,0.00027397,2]
[322246764,1712913039850,-500.0,0.00027397,2]
[322246766,1712913039862,-259.92770034,0.00027397,2]
[322246768,1712913039873,-500.0,0.00027397,2]
[322246770,1712913039883,-500.0,0.00027397,2]
[322246772,1712913039893,-500.0,0.00027397,2]
[322246774,1712913039904,-500.0,0.00027397,2]
[322246776,1712913039915,-500.0,0.00027397,2]
[322246778,1712913039925,-500.0,0.00027397,2]
[322246780,1712913039934,-500.0,0.00027397,2]
[322246782,1712913039944,-500.0,0.00027397,2]
[322246784,1712913039954,-532.65883253,0.00027397,2]
[322246786,1712913039964,-500.0,0.00027397,2]
[322246788,1712913039974,-500.0,0.00027397,2]
[322246790,1712913039984,-500.0,0.00027397,2]
[322246791,1712913039993,-188.76934425,0.00027397,2]
[322246792,1712913040003,-500.0,0.00027397,2]
[322246793,1712913040013,-500.0,0.00027397,2]
[322246794,1712913040023,-611.17876315,0.00027397,2]
[322246795,1712913040032,-500.0,0.00027397,2]
[322246796,1712913040042,-500.0,0.00027397,2]
[322246797,1712913040051,-500.0,0.00027397,2]
[322246799,1712913040063,-500.0,0.00027397,2]
[322246801,1712913040072,-500.0,0.00027397,2]
[322246803,1712913040082,-500.0,0.00027397,2]
[322246805,1712913040091,-500.0,0.00027397,2]
[322246806,1712913040099,-500.0,0.00027397,2]
[322246807,1712913040109,-500.0,0.00027397,2]
[322246808,1712913040119,-516.25016798,0.00027397,2]
[322246809,1712913040129,-500.0,0.00027397,2]
[322246810,1712913040138,-903.28,0.00027397,2]
[322246811,1712913040147,-500.0,0.00027397,2]
[322246812,1712913040156,-920.87,0.00027397,2]
[322246813,1712913040165,-500.0,0.00027397,2]
[322246814,1712913040174,-504.864169,0.00027397,2]
[322246815,1712913040182,-500.0,0.00027397,2]
[322246816,1712913040191,-500.0,0.00027397,2]
[322246817,1712913040201,-500.0,0.00027397,2]
[322246818,1712913040209,-500.0,0.00027397,2]
[322246819,1712913040218,-360.99868882,0.00027397,2]
[322246821,1712913040228,-500.0,0.00027397,2]
[322246823,1712913040236,-500.0,0.00027397,2]
[322246825,1712913040245,-458.36466841,0.00027397,2]
[322246827,1712913040254,-500.0,0.00027397,2]
[322246829,1712913040263,-500.0,0.00027397,2]
[322246831,1712913040272,-500.0,0.00027397,2]
[322246833,1712913040282,-750.0,0.00027397,2]
[322246835,1712913040291,-166.666666,0.00027397,2]
[322246837,1712913040300,-430.996053,0.00027397,2]
[322246839,1712913040312,-420.0,0.00027608,2]
[322246841,1712913040321,-500.0,0.00027671,2]
[322246843,1712913040331,-500.0,0.00027671,2]
[322246845,1712913040340,-500.0,0.00027671,2]
[322246847,1712913040350,-500.0,0.00027671,2]
[322246849,1712913040359,-500.0,0.00027671,2]
[322246851,1712913040369,-500.0,0.00027671,2]
[322246853,1712913040378,-500.0,0.00027671,2]
[322246855,1712913040387,-500.0,0.00027671,2]
[322246857,1712913040397,-617.2,0.00027671,2]
[322246859,1712913040406,-500.0,0.00027671,2]
[322246861,1712913040415,-500.0,0.00027671,2]
[322246863,1712913040425,-500.0,0.00027671,2]
[322246865,1712913040434,-633.78,0.00027671,2]
[322246867,1712913040443,-500.0,0.00027671,2]
[322246869,1712913040453,-500.0,0.00027671,2]
[322246872,1712913040462,-500.0,0.00027671,2]
[322246873,1712913040471,-500.0,0.00027671,2]
[322246875,1712913040480,-500.0,0.00027671,2]
[322246877,1712913040489,-500.0,0.00027671,2]
[322246879,1712913040498,-300.0,0.00027671,2]
[322246881,1712913040507,-500.0,0.00027671,2]
[322246883,1712913040516,-500.0,0.00027671,2]
[322246885,1712913040525,-500.0,0.00027671,2]
[322246887,1712913040534,-500.0,0.00027671,2]
[322246889,1712913040543,-500.0,0.00027671,2]
[322246891,1712913040552,-172.50814298,0.00027671,2]
[322246893,1712913040563,-500.0,0.00027671,2]
[322246895,1712913040572,-500.0,0.00027671,2]
[322246897,1712913040585,-500.0,0.00027671,2]
[322246899,1712913040594,-500.0,0.00027671,2]
[322246901,1712913040603,-500.0,0.00027671,2]
[322246903,1712913040613,-500.0,0.00027671,2]
[322246905,1712913040624,-500.0,0.00027671,2]
[322246907,1712913040633,-541.24,0.00027671,2]
[322246909,1712913040643,-500.0,0.00027671,2]
[322246911,1712913040653,-500.0,0.00027671,2]
[322246913,1712913040664,-500.0,0.00027671,2]
[322246916,1712913040674,-573.03156331,0.00027671,2]
[322246918,1712913040683,-500.0,0.00027671,2]
[322246920,1712913040692,-500.0,0.00027671,2]
[322246922,1712913040702,-500.0,0.00027671,2]
[322246924,1712913040711,-1045.83,0.00027671,2]
[322246926,1712913040721,-500.0,0.00027671,2]
[322246928,1712913040730,-500.0,0.00027671,2]
[322246931,1712913040739,-500.0,0.00027671,2]
[322246933,1712913040748,-500.0,0.00027671,2]
[322246935,1712913040757,-2709.69,0.00027671,2]
[322246937,1712913040766,-500.0,0.00027671,2]
[322246939,1712913040775,-604.13231368,0.00027671,2]
[322246941,1712913040783,-500.0,0.00027671,2]
[322246943,1712913040792,-500.0,0.00027671,2]
[322246944,1712913040801,-574.86754931,0.00027671,2]
[322246946,1712913040813,-500.0,0.00027671,2]
[322246948,1712913040822,-500.0,0.00027671,2]
[322246950,1712913040832,-500.0,0.00027671,2]
[322246951,1712913040840,-500.0,0.00027671,2]
[322246953,1712913040849,-500.0,0.00027671,2]
[322246955,1712913040858,-500.0,0.00027671,2]
[322246957,1712913040867,-500.0,0.00027671,2]
[322246959,1712913040876,-505.2499761,0.00027671,2]
[322246961,1712913040885,-500.0,0.00027671,2]
[322246963,1712913040894,-500.0,0.00027671,2]
[322246965,1712913040904,-500.0,0.00027671,2]
[322246967,1712913040912,-500.0,0.00027671,2]
[322246969,1712913040921,-500.0,0.00027671,2]
[322246971,1712913040931,-500.0,0.00027671,2]
[322246973,1712913040941,-500.0,0.00027671,2]
[322246975,1712913040950,-500.0,0.00027671,2]
[322246977,1712913040959,-500.0,0.00027671,2]
[322246979,1712913040968,-500.0,0.00027671,2]
[322246981,1712913040978,-500.0,0.00027671,2]
[322246983,1712913040988,-903.28,0.00027671,2]
[322246985,1712913040997,-920.87,0.00027671,2]
[322246987,1712913041006,-500.0,0.00027671,2]
[322246989,1712913041014,-500.0,0.00027671,2]
[322246991,1712913041024,-533.75,0.00027671,2]
[322246993,1712913041033,-500.0,0.00027671,2]
[322246995,1712913041042,-500.0,0.00027671,2]
[322246997,1712913041051,-422.85,0.00027945,2]
[322246998,1712913041062,-500.0,0.00027945,2]
[322247000,1712913041071,-500.0,0.00027945,2]
[322247002,1712913041080,-500.0,0.00027945,2]
[322247004,1712913041089,-500.0,0.00027945,2]
[322247006,1712913041098,-500.0,0.00027945,2]
[322247008,1712913041107,-500.0,0.00027945,2]
[322247010,1712913041116,-500.0,0.00027945,2]
[322247012,1712913041126,-500.0,0.00027945,2]
[322247014,1712913041134,-460.66,0.00027945,2]
[322247016,1712913041143,-500.0,0.00027945,2]
[322247018,1712913041152,-1045.83,0.00027945,2]
[322247020,1712913041162,-500.0,0.00027945,2]
[322247022,1712913041172,-500.0,0.00027945,2]
[322247024,1712913041181,-500.0,0.00027945,2]
[322247026,1712913041191,-2709.69,0.00027945,2]
[322247028,1712913041200,-500.0,0.00027945,2]
[322247030,1712913041209,-500.0,0.00027945,2]
[322247032,1712913041218,-500.0,0.00027945,2]
[322247034,1712913041227,-500.0,0.00027945,2]
[322247036,1712913041236,-500.0,0.00027945,2]
[322247038,1712913041245,-500.0,0.00027945,2]
[322247040,1712913041253,-500.0,0.00027945,2]
[322247042,1712913041262,-494.91,0.00027945,2]
[322247044,1712913041272,-381.74,0.00027945,2]
[322247045,1712913041282,-500.0,0.00027945,2]
[322247047,1712913041291,-500.0,0.00027945,2]
[322247049,1712913041300,-500.0,0.00027945,2]
[322247051,1712913041313,-486.5,0.00027945,2]
[322247053,1712913041322,-497.67403555,0.00027945,2]
[322247055,1712913041331,-500.0,0.00027945,2]
[322247057,1712913041340,-903.28,0.00027945,2]
[322247059,1712913041349,-920.87,0.00027945,2]
[322247061,1712913041358,-638.08,0.00027945,2]
[322247063,1712913041367,-518.31483365,0.00028,2]
[322247065,1712913041377,-166.666666,0.00028038,2]
[322247067,1712913041386,-420.0,0.00028047,2]
[322247069,1712913041395,-569.7,0.00028219,2]
[322247071,1712913041405,-500.0,0.00028219,2]
[322247073,1712913041413,-500.0,0.00028219,2]
[322247075,1712913041423,-235.98,0.00028219,2]
[322247077,1712913041431,-500.0,0.00028219,2]
[322247079,1712913041441,-314.34,0.00028219,2]
[322247081,1712913041450,-500.0,0.00028219,2]
[322247083,1712913041459,-1045.83,0.00028219,2]
[322247085,1712913041468,-445.2,0.00028219,2]
[322247087,1712913041477,-500.0,0.00028219,2]
[322247089,1712913041486,-2709.69,0.00028219,2]
[322247091,1712913041496,-361.34,0.00028219,2]
[322247093,1712913041506,-500.0,0.00028219,2]
[322247095,1712913041515,-500.0,0.00028219,2]
[322247097,1712913041523,-502.96,0.00028219,2]
[322247099,1712913041536,-500.0,0.00028219,2]
[322247101,1712913041545,-500.0,0.00028219,2]
[322247103,1712913041554,-341.64,0.00028219,2]
[322247105,1712913041565,-500.0,0.00028219,2]
[322247107,1712913041574,-459.68,0.00028219,2]
[322247109,1712913041584,-500.0,0.00028219,2]
[322247111,1712913041597,-500.0,0.00028219,2]
[322247113,1712913041606,-903.28,0.00028219,2]
[322247115,1712913041615,-920.87,0.00028219,2]
[322247117,1712913041624,-150.0,0.00028395,2]
[322247119,1712913041634,-500.0,0.00028492,2]
[322247121,1712913041643,-500.0,0.00028493,2]
[322247123,1712913041652,-447.86,0.00028493,2]
[322247125,1712913041662,-329.02,0.00028493,2]
[322247127,1712913041671,-500.0,0.00028493,2]
[322247129,1712913041681,-1045.83,0.00028493,2]
[322247131,1712913041690,-500.0,0.00028493,2]
[322247133,1712913041699,-2709.69,0.00028493,2]
[322247134,1712913041708,-202.78,0.00028493,2]
[322247136,1712913041717,-500.0,0.00028493,2]
[322247138,1712913041726,-500.0,0.00028493,2]
[322247140,1712913041734,-500.0,0.00028493,2]
[322247142,1712913041744,-564.78,0.00028493,2]
[322247144,1712913041753,-500.0,0.00028493,2]
[322247146,1712913041762,-500.0,0.00028493,2]
[322247148,1712913041771,-903.28,0.00028493,2]
[322247150,1712913041780,-920.87,0.00028493,2]
[322247152,1712913041789,-166.666666,0.00028679,2]
[322247154,1712913041799,-500.0,0.00028766,2]
[322247156,1712913041808,-500.0,0.00028767,2]
[322247158,1712913041818,-481.28,0.00028767,2]
[322247160,1712913041827,-1045.83,0.00028767,2]
[322247162,1712913041836,-500.0,0.00028767,2]
[322247164,1712913041844,-2709.69,0.00028767,2]
[322247166,1712913041853,-500.0,0.00028767,2]
[322247167,1712913041862,-500.0,0.00028767,2]
[322247169,1712913041872,-500.0,0.00028767,2]
[322247180,1712913041961,-500.0,0.00028767,2]
[322247182,1712913041970,-500.0,0.00028767,2]
[322247184,1712913041979,-903.28,0.00028767,2]
[322247186,1712913041988,-920.87,0.00028767,2]
[322247188,1712913041997,-158.55609735,0.00029038,2]
[322247190,1712913042006,-887.0189653,0.00029039,2]
[322247192,1712913042015,-500.0,0.0002904,2]
[322247194,1712913042023,-293.58,0.00029041,2]
[322247196,1712913042032,-1045.83,0.00029041,2]
[322247198,1712913042041,-500.0,0.00029041,2]
[322247199,1712913042050,-2709.69,0.00029041,2]
[322247201,1712913042060,-500.0,0.00029041,2]
[322247203,1712913042069,-500.0,0.00029041,2]
[322247205,1712913042078,-500.0,0.00029041,2]
[322247207,1712913042089,-500.0,0.00029041,2]
[322247209,1712913042098,-500.0,0.00029041,2]
[322247211,1712913042107,-903.28,0.00029041,2]
[322247213,1712913042117,-920.87,0.00029041,2]
[322247215,1712913042126,-500.0,0.00029314,2]
[322247217,1712913042135,-1045.83,0.00029315,2]
[322247219,1712913042144,-500.0,0.00029315,2]
[322247221,1712913042153,-2709.69,0.00029315,2]
[322247223,1712913042162,-491.46,0.00029315,2]
[322247225,1712913042171,-500.0,0.00029315,2]
[322247227,1712913042181,-500.0,0.00029315,2]
[322247229,1712913042189,-500.0,0.00029315,2]
[322247231,1712913042198,-500.0,0.00029315,2]
[322247233,1712913042208,-903.28,0.00029315,2]
[322247235,1712913042216,-920.87,0.00029315,2]
[322247237,1712913042225,-166.666666,0.00029321,2]
[322247239,1712913042234,-500.0,0.00029588,2]
[322247241,1712913042244,-1045.83,0.00029589,2]
[322247243,1712913042253,-500.0,0.00029589,2]
[322247245,1712913042262,-2709.69,0.00029589,2]
[322247247,1712913042271,-500.0,0.00029589,2]
[322247248,1712913042280,-500.0,0.00029589,2]
[322247250,1712913042289,-500.0,0.00029589,2]
[322247252,1712913042298,-316.73909979,0.00029589,2]
[322247254,1712913042309,-903.28,0.00029589,2]
[322247256,1712913042318,-920.87,0.00029589,2]
[322247258,1712913042327,-500.0,0.00029862,2]
[322247260,1712913042336,-1045.83,0.00029863,2]
[322247262,1712913042345,-553.68,0.00029863,2]
[322247264,1712913042354,-2709.69,0.00029863,2]
[322247266,1712913042363,-500.0,0.00029863,2]
[322247268,1712913042372,-478.1986685,0.00029863,2]
[322247270,1712913042381,-500.0,0.00029863,2]
[322247272,1712913042391,-903.28,0.00029863,2]
[322247274,1712913042400,-920.87,0.00029863,2]
[322247276,1712913042408,-335.0,0.00029893,2]
[322247278,1712913042417,-166.666666,0.00029962,2]
[322247280,1712913042426,-278.0,0.0003,2]
[322247282,1712913042434,-1045.83,0.00030136,2]
[322247284,1712913042444,-2709.69,0.00030136,2]
[322247286,1712913042453,-500.0,0.00030136,2]
[322247288,1712913042462,-500.0,0.00030136,2]
[322247290,1712913042470,-500.0,0.00030136,2]
[322247292,1712913042480,-903.28,0.00030136,2]
[322247294,1712913042489,-920.87,0.00030136,2]
[322247295,1712913042498,-1045.83,0.0003041,7]
[322247297,1712913042507,-2709.69,0.0003041,7]
[322247299,1712913042517,-500.0,0.0003041,7]
[322247301,1712913042526,-500.0,0.0003041,7]
[322247303,1712913042538,-500.0,0.0003041,7]
[322247306,1712913042547,-903.28,0.0003041,7]
[322247308,1712913042559,-920.87,0.0003041,7]
[322247309,1712913042568,-166.666666,0.00030603,2]
[322247311,1712913042577,-1045.83,0.00030684,7]
[322247313,1712913042591,-2709.69,0.00030684,7]
[322247315,1712913042600,-500.0,0.00030684,7]
[322247317,1712913042609,-500.0,0.00030684,7]
[322247319,1712913042618,-500.0,0.00030684,7]
[322247321,1712913042629,-903.28,0.00030684,7]
[322247323,1712913042637,-920.87,0.00030684,7]
[322247325,1712913042647,-587.0,0.00030851,2]
[322247327,1712913042657,-1045.83,0.00030958,7]
[322247329,1712913042666,-2709.69,0.00030958,7]
[322247331,1712913042676,-500.0,0.00030958,7]
[322247333,1712913042685,-500.0,0.00030958,7]
[322247335,1712913042695,-500.0,0.00030958,7]
[322247337,1712913042704,-903.28,0.00030958,7]
[322247339,1712913042713,-920.87,0.00030958,7]
[322247341,1712913042723,-1045.83,0.00031232,7]
[322247343,1712913042732,-2709.69,0.00031232,7]
[322247345,1712913042741,-500.0,0.00031232,7]
[322247347,1712913042751,-500.0,0.00031232,7]
[322247349,1712913042760,-500.0,0.00031232,7]
[322247351,1712913042769,-903.28,0.00031232,7]
[322247353,1712913042777,-920.87,0.00031232,7]
[322247355,1712913042786,-150.0,0.000315,2]
[322247357,1712913042796,-1045.83,0.00031506,7]
[322247359,1712913042805,-2709.69,0.00031506,7]
[322247361,1712913042814,-500.0,0.00031506,7]
[322247363,1712913042823,-500.0,0.00031506,7]
[322247365,1712913042832,-220.69904712,0.00031506,7]
[322247367,1712913042841,-903.28,0.00031506,7]
[322247368,1712913042849,-920.87,0.00031506,7]
[322247370,1712913042858,-1045.83,0.0003178,7]
[322247372,1712913042867,-2709.69,0.0003178,7]
[322247374,1712913042877,-500.0,0.0003178,7]
[322247376,1712913042886,-500.0,0.0003178,7]
[322247378,1712913042895,-903.28,0.0003178,7]
[322247380,1712913042904,-920.87,0.0003178,7]
[322247382,1712913042913,-1210.66841003,0.00032,2]
[322247384,1712913042922,-190.9330142,0.00032,4]
[322247386,1712913042931,-1210.66841003,0.00032,2]
[322247388,1712913042940,-1045.83,0.00032054,7]
[322247390,1712913042949,-2709.69,0.00032054,7]
[322247392,1712913042958,-500.0,0.00032054,7]
[322247394,1712913042967,-500.0,0.00032054,7]
[322247396,1712913042977,-903.28,0.00032054,7]
[322247399,1712913042986,-920.87,0.00032054,7]
[322247401,1712913042995,-1045.83,0.00032328,7]
[322247404,1712913043005,-2709.69,0.00032328,7]
[322247407,1712913043014,-500.0,0.00032328,7]
[322247410,1712913043023,-500.0,0.00032328,7]
[322247413,1712913043032,-903.28,0.00032328,7]
[322247416,1712913043041,-920.87,0.00032328,7]
[322247419,1712913043049,-1174.90184385,0.00032353,4]
[322247447,1712913043187,-365.82201484,0.00025,2]
[322247450,1712913043198,-98038.75675261,0.00025,2]
[322247533,1712913043893,-4725.37514323,0.00025,2]
[322247535,1712913043905,-1306.81220237,0.00025,2]
[322251254,1712913132773,373.04611022,0.000249,2]
[322251258,1712914156114,-250.0,0.00024873,2]
[322251259,1712914156138,-380.10161277,0.00024874,4]
[322251260,1712914167105,-164.60794167,0.000248,2]
[322251261,1712914167131,-142.68409433,0.00024874,4]
[322251262,1712914167152,-518.31483365,0.000249,2]
[322251263,1712914167177,-332.41804032,0.000249,2]
[322251265,1712914206093,150.0,0.000228,2]
[322251266,1712914229832,-327.56059648,0.00024999,2]
[322251267,1712914229863,-300.0,0.00024999,2]
[322251268,1712914229894,-300.0,0.00024999,2]
[322251269,1712914229914,-327.56059648,0.00025,2]
[322251270,1712914229926,-300.0,0.00025,2]
[322251271,1712914229945,-300.0,0.00025,2]
[322251272,1712914229956,-1384.87880704,0.00025,2]
[322251591,1712914238711,-353.31409221,0.00025,2]
[322251592,1712914238992,-23768.81846206,0.00025,2]
[322251595,1712914239003,-241.31748663,0.00025,5]
[322251596,1712914239014,-587.67,0.00025,2]
[322251598,1712914239024,-250.0,0.00027081,2]
[322251600,1712914239035,-420.0,0.00027082,2]
[322251603,1712914239045,-522.7857071,0.00027395,4]
[322251605,1712914239055,-500.0,0.00027397,2]
[322251607,1712914239064,-508.37236142,0.00027397,2]
[322251608,1712914239074,-347.84297722,0.00027397,2]
[322251610,1712914239083,-500.0,0.00027397,2]
[322251612,1712914239092,-300.0,0.00027397,2]
[322251614,1712914239103,-500.0,0.00027397,2]
[322251617,1712914239113,-500.0,0.00027397,2]
[322251619,1712914239122,-500.0,0.00027397,2]
[322251620,1712914239132,-500.0,0.00027397,2]
[322251623,1712914239141,-500.0,0.00027397,2]
[322251625,1712914239150,-500.0,0.00027397,2]
[322251627,1712914239159,-615.32305045,0.00027397,2]
[322251629,1712914239168,-500.0,0.00027397,2]
[322251631,1712914239178,-500.0,0.00027397,2]
[322251633,1712914239187,-500.0,0.00027397,2]
[322251634,1712914239196,-500.0,0.00027397,2]
[322251636,1712914239205,-500.0,0.00027397,2]
[322251638,1712914239214,-500.0,0.00027397,2]
[322251640,1712914239223,-500.0,0.00027397,2]
[322251642,1712914239232,-500.0,0.00027397,2]
[322251644,1712914239241,-500.0,0.00027397,2]
[322251646,1712914239251,-574.86754931,0.00027397,2]
[322251648,1712914239260,-500.0,0.00027397,2]
[322251650,1712914239269,-500.0,0.00027397,2]